bitfinex/quotes_ETHUSD_20250808
["timestamp","ask_amount","ask_price","bid_price","bid_amount"]
[1754688556146,0.4596,4042.8,4042.7,12.85649936]
[1754688556441,4.2031,4043.0,4042.7,12.85649936]
[1754688556618,0.9007,4042.9,4042.7,12.85649936]
[1754688558251,0.002,4042.8,4042.7,12.85649936]
[1754688561925,0.002,4042.8,4042.7,15.33009373]
[1754688562246,0.002,4042.8,4042.7,15.72746324]
[1754688565659,0.002,4042.8,4042.7,16.27746324]
[1754688565831,0.002,4042.8,4042.7,16.49726324]
[1754688566223,0.002,4042.8,4042.7,20.80606324]
[1754688566638,0.002,4042.8,4042.7,20.58746324]
[1754688566844,0.002,4042.8,4042.7,20.80606324]
[1754688567921,0.002,4042.8,4042.7,24.56506324]
[1754688568140,0.002,4043.3,4043.2,6.02328848]
[1754688568342,0.002,4043.3,4043.2,20.63805314]
[1754688568530,0.002,4043.3,4043.2,20.98065314]
[1754688570136,0.002,4043.3,4043.2,20.76205314]
[1754688570323,0.002,4043.3,4043.2,20.98065314]
[1754688575259,0.002,4043.3,4043.2,26.86635314]
[1754688575459,0.002,4043.3,4043.2,23.02859514]
[1754688576255,0.002,4043.3,4043.2,22.80999514]
[1754688576427,0.002,4043.3,4043.2,23.64654814]
[1754688577452,0.002,4043.7,4043.6,6.02304382]
[1754688577653,0.002,4043.7,4043.6,20.18681655]
[1754688577961,0.002,4043.7,4043.6,24.62081655]
[1754688578661,0.9045,4043.7,4043.6,24.62081655]
[1754688580572,0.9045,4043.7,4043.6,4.98527337]
[1754688580858,0.9045,4043.7,4043.6,4.058]
[1754688581052,0.9045,4043.7,4043.6,7.058]
[1754688582831,0.9045,4043.7,4043.6,9.53104382]
[1754688583839,0.9045,4043.7,4043.6,3.124]
[1754688586046,3.37748266,4043.7,4043.6,0.124]
[1754688586370,4.3382171,4043.7,4043.6,0.124]
[1754688586566,4.3382171,4043.7,4042.4,3.757]
[1754688586567,2.47314936,4043.5,4042.8,2.47349326]
[1754688586867,0.124,4043.3,4042.8,2.47349326]
[1754688587060,0.9025,4043.2,4042.8,2.47349326]
[1754688587262,0.9025,4043.1,4042.7,5.59757757]
[1754688587443,0.124,4043.3,4042.9,2.47344946]
[1754688587639,0.9025,4043.0,4042.9,2.47344946]
[1754688597778,0.4547,4043.0,4042.9,3.0]
[1754688598151,0.4547,4043.0,4042.9,2.47344358]
[1754688598478,0.9475,4043.0,4042.9,2.47344358]
[1754688599352,2.47498996,4043.7,4043.2,2.47324095]
[1754688599353,0.4547,4043.5,4043.2,2.47324095]
[1754688599682,0.4547,4043.5,4043.3,3.0]
[1754688599877,0.4928,4043.4,4043.3,3.0]
[1754688600180,0.9475,4043.4,4043.3,3.0]
[1754688600356,0.9475,4043.4,4043.3,2.47322731]
[1754688601376,0.9475,4043.4,4043.2,5.59726682]
[1754688601577,0.9475,4043.4,4043.3,2.47322731]
[1754688601789,0.4928,4043.4,4043.3,2.47322731]
[1754688602284,0.9475,4043.4,4043.3,2.47322731]
[1754688603285,0.9475,4043.4,4043.2,5.59726781]
[1754688603475,0.4547,4043.3,4043.2,5.59726781]
[1754688605084,0.4567,4043.6,4043.3,5.47318595]
[1754688605266,0.002,4043.6,4043.3,2.47318595]
[1754688605465,0.4547,4043.5,4043.4,2.47315209]
[1754688606755,0.4547,4043.5,4043.3,2.47320671]
[1754688606952,0.002,4043.6,4043.5,2.47310498]
[1754688607160,0.002,4043.6,4043.5,15.32960434]
[1754688607382,0.002,4043.6,4043.5,19.20660434]
[1754688607682,0.002,4043.6,4043.5,19.75660434]
[1754688607985,0.002,4043.6,4043.5,20.47500434]
[1754688609694,0.002,4043.6,4043.5,19.75660434]
[1754688609857,0.002,4043.6,4043.5,20.47500434]
[1754688610494,0.002,4043.6,4043.5,26.60458234]
[1754688611053,0.002,4043.6,4043.5,23.71195634]
[1754688611258,0.002,4043.6,4043.5,20.47500434]
[1754688611658,0.002,4043.6,4043.5,23.29731434]
[1754688612168,0.002,4043.6,4043.5,20.47500434]
[1754688613480,0.002,4043.6,4043.5,24.40900434]
[1754688615009,0.002,4043.6,4043.5,10.08110498]
[1754688615169,0.002,4043.6,4043.5,23.69160434]
[1754688615878,0.002,4043.6,4043.5,19.75760434]
[1754688617706,0.002,4043.6,4043.5,16.00360434]
[1754688617994,0.002,4043.6,4043.5,19.75660434]
[1754688619076,0.002,4043.6,4043.5,21.24260434]
[1754688632209,0.002,4043.7,4043.6,7.50904382]
[1754688633888,0.002,4044.5,4044.1,1.486]
[1754688634087,0.002,4044.5,4044.4,6.02255464]
[1754688634292,1e-08,4044.6,4044.5,6.0224935]
[1754688640468,1e-08,4044.9,4044.8,2.47231012]
[1754688640632,1e-08,4044.9,4044.8,19.08080948]
[1754688640931,1e-08,4044.9,4044.8,19.20480948]
[1754688643239,1e-08,4045.0,4044.9,7.508249]
[1754688643415,0.04,4045.9,4045.8,6.02169904]
[1754688643747,0.04,4045.9,4045.8,20.33920177]
[1754688644131,0.4298,4046.2,4046.1,3.02151578]
[1754688644335,0.002,4046.5,4046.4,3.02133254]
[1754688644533,0.4318,4046.5,4046.4,6.02133254]
[1754688644732,0.4318,4046.5,4046.4,9.89853254]
[1754688644933,0.002,4046.5,4046.4,11.13563735]
[1754688645112,0.0347,4046.9,4046.8,6.02108826]
[1754688645451,0.0347,4046.9,4046.8,6.754]
[1754688645609,0.0347,4046.9,4046.8,9.22508826]
[1754688645809,0.0347,4046.9,4046.8,3.1232]
[1754688646023,0.9234,4046.9,4046.8,3.1232]
[1754688646411,0.9234,4046.9,4046.8,5.59428826]
[1754688649221,0.9234,4046.9,4046.8,3.1232]
[1754688649419,0.9234,4046.9,4046.8,5.59428826]
[1754688651644,0.9234,4046.9,4046.8,3.1232]
[1754688651847,0.9234,4046.9,4046.8,5.59428826]
[1754688652445,0.9234,4046.9,4046.8,3.0]
[1754688652627,1.0466,4046.9,4046.8,3.0]
[1754688652823,2.47120224,4046.7,4045.9,2.47159023]
[1754688653036,0.1232,4046.5,4045.9,0.1232]
[1754688653238,2.4714009,4046.3,4045.9,0.1232]
[1754688653416,2.47134981,4046.4,4045.9,0.1232]
[1754688653621,0.8887,4046.2,4045.9,0.1232]
[1754688653821,0.8887,4046.1,4045.9,0.1232]
[1754688654048,0.8887,4046.0,4045.9,0.1232]
[1754688654219,0.8887,4046.0,4045.4,2.47189763]
[1754688654424,0.9546,4045.9,4045.1,3.753]
[1754688654625,0.9546,4045.8,4045.4,0.1232]
[1754688654840,3.42634662,4045.8,4045.1,6.60242552]
[1754688655039,0.6139,4045.7,4045.1,2.97142552]
[1754688655254,0.9546,4045.6,4045.1,0.124]
[1754688655557,3.42648418,4045.5,4044.8,0.124]
[1754688655718,0.124,4045.3,4044.8,0.124]
[1754688655921,0.9546,4045.2,4044.8,0.124]
[1754688656120,2.59604934,4045.3,4044.8,0.124]
[1754688656317,0.9546,4045.1,4044.8,0.124]
[1754688656744,0.9546,4045.0,4044.8,0.124]
[1754688657153,0.4907,4044.9,4044.8,0.124]
[1754688657328,0.9546,4044.9,4044.8,0.124]
[1754688657933,0.9546,4044.9,4044.8,3.124]
[1754688659049,0.9546,4044.9,4044.8,2.59631012]
[1754688659244,0.4639,4045.4,4044.9,2.472249]
[1754688659450,0.4907,4045.4,4045.3,2.47200454]
[1754688659653,0.4907,4045.4,4045.3,5.47200454]
[1754688660027,0.9546,4045.4,4045.3,5.47200454]
[1754688661736,0.9546,4045.4,4045.3,3.0]
[1754688661964,0.9546,4045.4,4045.3,5.47200454]
[1754688664562,0.9546,4045.4,4045.2,0.124]
[1754688664728,13.61149936,4046.0,4043.6,3.935]
[1754688664729,2.47228454,4044.9,4044.1,2.51269523]
[1754688664929,0.124,4044.7,4044.2,2.47266794]
[1754688665155,0.124,4044.7,4044.1,2.63672613]
[1754688665156,0.9546,4044.6,4044.1,2.63672613]
[1754688665356,0.9546,4044.5,4044.1,2.63672613]
[1754688665659,0.9546,4044.4,4044.1,0.04]
[1754688666039,2.47238564,4044.7,4044.1,0.04]
[1754688666242,0.9546,4044.3,4044.1,0.04]
[1754688666434,0.9546,4044.3,4044.1,3.04]
[1754688666634,0.124,4044.4,4044.1,3.04]
[1754688666835,0.9546,4044.3,4044.1,0.04]
[1754688667162,0.9546,4044.2,4044.1,0.04]
[1754688670452,0.9546,4044.2,4044.1,0.041]
[1754688674067,0.4639,4044.6,4044.2,3.0]
[1754688674273,0.124,4044.7,4044.2,3.0]
[1754688674455,0.4639,4044.5,4044.2,3.0]
[1754688674654,0.124,4044.7,4044.2,3.0]
[1754688674976,0.9546,4044.6,4044.1,3.165]
[1754688675143,2.59638278,4044.7,4044.1,3.165]
[1754688675343,0.9546,4044.5,4044.1,3.165]
[1754688675784,0.9546,4044.4,4044.1,3.165]
[1754688675945,0.4907,4044.4,4044.1,3.165]
[1754688676145,0.4639,4044.3,4044.1,3.165]
[1754688676584,0.4639,4044.3,4044.1,2.63771563]
[1754688677075,0.4639,4044.3,4044.1,0.165]
[1754688678758,0.4639,4044.3,4044.1,2.63772397]
[1754688679074,0.4639,4044.3,4044.2,0.81105775]
[1754688679263,0.4639,4044.3,4044.2,3.81105775]
[1754688679661,0.9546,4044.3,4044.2,3.0]
[1754688683153,0.4639,4044.3,4044.2,3.0]
[1754688689092,0.4639,4044.3,4044.2,5.47267692]
[1754688689281,0.4639,4044.3,4044.2,3.0]
[1754688690677,0.4639,4044.3,4044.2,5.47267692]
[1754688691273,0.4639,4044.3,4044.2,3.0]
[1754688692759,3.877,4044.7,4044.2,5.47266299]
[1754688693060,0.4655,4044.6,4044.2,5.47266299]
[1754688693256,0.4655,4044.5,4044.2,6.65901437]
[1754688693503,0.4655,4044.5,4044.2,4.18635138]
[1754688693791,0.4655,4044.4,4044.2,4.18635138]
[1754688694959,0.4655,4044.3,4044.2,4.18635138]
[1754688695160,0.4655,4044.3,4044.2,3.0]
[1754688697095,0.9301,4044.3,4044.2,3.0]
[1754688698003,0.4655,4044.3,4044.2,3.0]
[1754688699189,0.4655,4044.3,4044.1,2.63773117]
[1754688699410,0.124,4044.7,4044.1,3.165]
[1754688699583,3.753,4044.4,4044.1,3.165]
[1754688699889,0.9301,4045.3,4044.4,3.0]
[1754688700059,3.753,4045.2,4044.8,0.124]
[1754688700264,0.4655,4045.1,4044.8,0.124]
[1754688700465,0.4655,4045.1,4044.9,2.47218989]
[1754688700690,3.753,4045.2,4045.0,2.47218788]
[1754688700897,3.753,4045.2,4044.8,2.59630012]
[1754688700898,3.753,4045.2,4045.1,2.47212677]
[1754688701068,4.2176,4045.2,4045.0,2.47216825]
[1754688701268,0.4655,4045.1,4045.0,2.47216825]
[1754688702585,0.9301,4045.1,4045.0,2.47216825]
[1754688705223,4.6831,4045.1,4045.0,2.47216825]
[1754688708701,4.6831,4045.1,4044.8,2.59630012]
[1754688708702,3.752,4045.1,4044.8,0.124]
[1754688708905,3.752,4045.1,4045.0,2.47218788]
[1754688709315,4.2175,4045.1,4045.0,2.47218788]
[1754688709996,0.4655,4045.1,4045.0,2.47218788]
[1754688710202,4.2175,4045.1,4045.0,2.47218788]
[1754688710544,0.4646,4045.3,4045.2,2.47206565]
[1754688710727,0.4646,4045.3,4044.8,0.124]
[1754688710728,3.752,4045.3,4045.1,3.0]
[1754688711621,0.4655,4045.7,4045.2,2.47206565]
[1754688711802,3.752,4045.6,4045.5,2.47188233]
[1754688712203,4.2175,4045.6,4045.4,2.47192523]
[1754688712910,4.2175,4045.6,4045.5,2.47188233]
[1754688716747,3.752,4045.6,4045.5,2.47188233]
[1754688717623,4.2143,4045.6,4045.5,2.47188233]
[1754688722731,4.2143,4045.6,4045.0,0.124]
[1754688722932,0.4623,4045.5,4045.1,5.47212677]
[1754688723246,3.752,4045.4,4045.1,5.47212677]
[1754688723442,3.752,4045.4,4045.3,2.47200454]
[1754688723813,4.2143,4045.4,4045.3,2.47200454]
[1754688724649,4.2143,4045.4,4045.2,3.0]
[1754688724650,4.6854,4045.4,4045.0,0.124]
[1754688724833,1.47883,4045.3,4044.9,2.47222856]
[1754688725018,4.6854,4045.2,4044.8,2.47229535]
[1754688725217,0.9334,4045.1,4044.8,2.47229535]
[1754688725446,3.752,4045.0,4044.8,2.47229535]
[1754688725628,4.2231,4045.0,4044.8,2.47229535]
[1754688725940,0.1232,4045.8,4045.0,3.0]
[1754688726112,4.2143,4045.7,4045.2,5.47201087]
[1754688726316,4.2143,4045.7,4045.3,2.47198088]
[1754688726317,0.9334,4045.6,4045.3,2.47198088]
[1754688726714,3.752,4045.7,4045.3,2.47198088]
[1754688726916,0.9334,4045.5,4045.3,2.47198088]
[1754688727115,3.752,4045.4,4045.3,2.47198088]
[1754688727341,4.2143,4045.4,4045.3,2.47198088]
[1754688728545,3.752,4045.4,4045.3,2.47198088]
[1754688728712,3.752,4045.4,4045.3,5.99683912]
[1754688729547,0.4623,4045.7,4045.4,5.47192938]
[1754688729745,0.5943,4045.8,4045.4,5.47192938]
[1754688729746,3.752,4045.6,4045.4,2.47192938]
[1754688729945,4.2143,4045.6,4045.4,2.47192938]
[1754688730143,4.2143,4045.6,4045.3,5.47198553]
[1754688730448,0.4623,4045.5,4045.3,2.47198553]
[1754688730650,3.752,4045.4,4045.3,2.47198553]
[1754688730825,4.2143,4045.4,4045.3,2.47198553]
[1754688731231,4.2143,4045.4,4045.2,2.59604503]
[1754688731550,4.2143,4045.4,4045.3,2.47200454]
[1754688732414,4.2143,4045.4,4045.3,5.47200454]
[1754688732612,4.2143,4045.4,4045.3,2.47200454]
[1754688734045,0.4623,4045.4,4045.3,2.47200454]
[1754688734452,4.2143,4045.4,4045.3,2.47200454]
[1754688737960,3.752,4045.4,4045.3,2.47200454]
[1754688738341,4.2143,4045.4,4045.3,2.47200454]
[1754688739553,4.2143,4045.4,4045.3,3.0]
[1754688739742,4.6854,4045.4,4045.3,3.0]
[1754688742235,4.6854,4045.4,4045.3,5.47200454]
[1754688743367,4.6854,4045.4,4045.3,3.0]
[1754688745581,4.6844,4045.4,4045.3,5.47200454]
[1754688746378,4.6844,4045.4,4045.3,3.0]
[1754688749971,4.6844,4045.4,4045.3,5.47200454]
[1754688750167,4.6844,4045.4,4045.3,3.0]
[1754688753346,4.6844,4045.4,4045.3,5.47200454]
[1754688753661,4.2133,4045.4,4045.3,5.47200454]
[1754688756374,4.2133,4045.4,4045.3,3.0]
[1754688757553,4.2133,4045.4,4045.3,5.47200454]
[1754688757955,4.6876,4045.4,4045.3,3.0]
[1754688759687,4.6876,4045.4,4045.3,5.47200454]
[1754688760492,4.6876,4045.4,4045.3,3.0]
[1754688761400,4.6876,4045.4,4045.3,5.47200454]
[1754688761902,4.2133,4045.4,4045.3,5.47200454]
[1754688765060,0.6618341,4046.3,4045.3,4.02551296]
[1754688765288,3.751,4046.2,4046.0,0.1232]
[1754688765485,3.751,4046.1,4046.0,5.59477686]
[1754688766599,0.4487,4046.2,4046.1,2.47151578]
[1754688766807,4.1997,4046.2,4046.1,2.47151578]
[1754688767894,4.1997,4046.2,4046.0,3.0]
[1754688767895,4.674,4046.2,4046.0,3.0]
[1754688768200,0.923,4046.1,4046.0,3.0]
[1754688768873,1.40272,4046.1,4045.2,3.0]
[1754688769075,2.59490032,4045.8,4045.2,3.124]
[1754688769291,6.22177114,4045.7,4045.2,0.124]
[1754688769602,4.673,4045.7,4045.2,3.124]
[1754688769794,0.4743,4045.6,4045.2,3.124]
[1754688769976,0.1232,4045.8,4045.2,3.124]
[1754688769977,3.75,4045.5,4045.2,3.124]
[1754688770300,0.923,4045.4,4045.2,0.124]
[1754688770601,3.75,4045.3,4045.2,0.124]
[1754688770769,4.1987,4045.3,4045.2,0.124]
[1754688774609,3.75,4045.5,4045.4,5.47194344]
[1754688774768,0.4598,4045.7,4045.5,2.47183381]
[1754688774964,3.75,4045.6,4045.5,2.47183381]
[1754688781091,4.7098,4045.6,4045.3,0.001]
[1754688781414,1.43078,4045.5,4045.3,0.001]
[1754688781617,3.75,4045.4,4045.3,0.001]
[1754688781982,4.7098,4045.4,4045.3,0.001]
[1754688783412,7.18174344,4045.4,4045.3,0.001]
[1754688783918,4.7098,4045.4,4045.3,0.001]
[1754688784721,4.833,4045.4,4045.3,0.001]
[1754688785215,7.30494344,4045.4,4045.3,0.001]
[1754688785414,4.833,4045.4,4045.3,0.001]
[1754688785633,7.30494344,4045.4,4045.3,0.001]
[1754688786904,4.833,4045.4,4045.3,0.001]
[1754688787312,7.30494344,4045.4,4045.3,0.001]
[1754688787923,4.833,4045.4,4045.3,0.001]
[1754688788125,7.30494344,4045.4,4045.3,0.001]
[1754688792107,4.833,4045.4,4045.3,0.001]
[1754688792508,7.30494344,4045.4,4045.3,0.001]
[1754688792703,8.32970775,4045.4,4045.3,0.001]
[1754688794034,8.8579139,4045.4,4045.3,0.001]
[1754688794505,8.32970775,4045.4,4045.3,0.001]
[1754688798399,8.85829126,4045.4,4045.3,0.001]
[1754688804242,5.10829126,4045.4,4045.3,0.001]
[1754688804539,8.85929126,4045.4,4045.3,0.001]
[1754688809814,5.10829126,4045.4,4045.3,0.001]
[1754688810023,8.85929126,4045.4,4045.3,0.001]
[1754688819056,7.89949126,4045.4,4045.3,0.001]
[1754688819579,4.14849126,4045.4,4045.3,0.001]
[1754688819876,7.37090775,4045.4,4045.3,0.001]
[1754688820179,7.89949126,4045.4,4045.3,0.001]
[1754688820478,4.40278351,4045.4,4045.3,0.001]
[1754688820711,6.34614344,4045.4,4045.3,0.001]
[1754688820852,6.87472695,4045.4,4045.3,0.001]
[1754688821175,4.40178351,4045.4,4045.3,0.001]
[1754688821376,3.8732,4045.4,4045.3,0.4554]
[1754688821686,3.8732,4045.4,4045.3,0.674]
[1754688822361,3.8732,4045.4,4045.3,3.14600454]
[1754688822562,3.8732,4045.4,4045.3,2.47300454]
[1754688822761,3.8732,4045.4,4045.3,3.14600454]
[1754688823069,3.8732,4045.4,4045.3,0.674]
[1754688823850,5.937,4045.8,4045.6,2.47179855]
[1754688824055,3.75,4045.7,4045.6,2.47179855]
[1754688825089,3.75,4045.7,4045.6,2.92619855]
[1754688826057,6.0602,4045.8,4045.6,2.92619855]
[1754688826256,3.75,4045.7,4045.6,2.92619855]
[1754688826684,6.0602,4045.8,4045.6,2.92619855]
[1754688826987,6.0602,4045.8,4045.6,2.92622123]
[1754688827182,3.75,4045.7,4045.6,2.92622123]
[1754688827551,3.75,4045.7,4045.6,2.47182123]
[1754688827749,3.75,4045.7,4045.6,3.00055766]
[1754688828149,6.0602,4045.8,4045.7,2.47176014]
[1754688828483,9.8102,4045.8,4045.7,2.92616014]
[1754688828986,9.8102,4045.8,4045.7,2.47176014]
[1754688829184,0.66096958,4046.8,4046.2,2.47145317]
[1754688829386,0.4801,4046.9,4046.2,0.49430577]
[1754688829557,0.1232,4046.6,4046.3,2.47138337]
[1754688829753,3.75,4046.5,4046.3,2.47138337]
[1754688832081,3.749,4046.4,4046.2,2.47144248]
[1754688832281,0.1232,4046.6,4046.4,2.47129325]
[1754688832481,3.749,4046.5,4046.4,2.47129325]
[1754688832678,3.749,4046.5,4046.3,2.47137572]
[1754688832881,3.749,4046.5,4046.3,3.27798418]
[1754688833994,3.749,4046.5,4046.3,0.80660846]
[1754688834973,3.749,4046.5,4046.2,5.47143553]
[1754688836361,3.749,4046.5,4046.2,3.0]
[1754688836561,3.749,4046.5,4046.2,5.47145234]
[1754688840811,3.749,4046.5,4046.2,3.0]
[1754688840961,10.82182166,4046.4,4045.7,2.47175856]
[1754688841299,2.59469341,4046.2,4045.5,2.47184224]
[1754688841481,2.59469341,4046.2,4045.5,5.47184224]
[1754688841482,4.7097,4046.1,4045.5,5.47184224]
[1754688841796,4.7097,4046.1,4045.6,2.47281295]
[1754688841797,0.4638,4046.0,4045.6,2.47281295]
[1754688842295,3.749,4045.9,4045.7,2.47175192]
[1754688842465,3.749,4045.9,4045.6,2.47280906]
[1754688842665,0.587,4046.2,4045.6,2.47280906]
[1754688842666,0.1232,4046.2,4045.6,0.001]
[1754688843013,0.1232,4046.0,4045.6,0.001]
[1754688843169,3.749,4045.9,4045.6,0.001]
[1754688843507,4.7097,4045.9,4045.6,0.001]
[1754688843667,4.2128,4045.9,4045.6,0.001]
[1754688843867,3.749,4045.9,4045.7,2.47175971]
[1754688845722,3.749,4045.9,4045.6,2.4728091]
[1754688847074,0.1232,4046.0,4045.6,2.4728091]
[1754688847298,3.749,4045.9,4045.6,2.4728091]
[1754688847603,0.587,4046.4,4045.8,2.59485579]
[1754688847778,3.749,4046.3,4045.9,2.47163746]
[1754688848897,4.2128,4046.3,4045.9,2.47163746]
[1754688849278,4.2128,4046.3,4046.0,2.47156936]
[1754688849478,4.2128,4046.3,4045.8,0.1232]
[1754688850004,4.2128,4046.3,4046.0,2.47157007]
[1754688850423,4.2128,4046.3,4045.8,2.59488399]
[1754688851329,0.4638,4046.2,4045.8,0.1232]
[1754688851513,4.2459,4046.3,4045.8,0.1232]
[1754688851831,0.4638,4046.1,4045.8,0.1232]
[1754688852020,3.749,4046.0,4045.8,0.1232]
[1754688852610,3.749,4046.0,4045.8,2.59488775]
[1754688853005,4.2128,4046.0,4045.8,0.1232]
[1754688855439,4.2128,4046.0,4045.8,2.5948919]
[1754688856842,4.2128,4046.0,4045.8,2.59487741]
[1754688856843,3.749,4046.0,4045.8,2.59487741]
[1754688859540,3.749,4046.0,4045.8,0.1232]
[1754688861050,4.2128,4046.0,4045.8,0.1232]
[1754688864414,3.749,4046.0,4045.8,0.1242]
[1754688864617,0.4743,4045.9,4045.8,0.1242]
[1754688865216,0.9354,4045.9,4045.8,0.1242]
[1754688866582,3.40703795,4045.9,4045.8,0.001]
[1754688866759,1.0586,4045.9,4045.8,0.001]
[1754688874305,0.5975,4045.9,4045.8,0.001]
[1754688876108,3.748,4045.9,4045.8,0.001]
[1754688877904,4.2223,4045.9,4045.8,0.001]
[1754688878681,4.6834,4045.9,4045.8,0.001]
[1754688878882,4.8066,4045.9,4045.8,0.001]
[1754688880705,0.1232,4045.9,4045.8,2.47269904]
[1754688880925,3.748,4045.9,4045.8,2.72005369]
[1754688881720,1.12811106,4046.2,4045.8,0.2483699]
[1754688881929,4.6834,4046.1,4045.8,0.001]
[1754688882312,0.9354,4046.0,4045.8,0.001]
[1754688882510,3.748,4045.9,4045.8,0.001]
[1754688883012,4.2223,4045.9,4045.8,0.001]
[1754688883212,4.2223,4045.9,4045.8,2.47269904]
[1754688883529,3.748,4045.9,4045.8,2.47269904]
[1754688883917,0.4743,4046.1,4045.8,2.47269904]
[1754688884124,3.748,4045.9,4045.8,2.47269904]
[1754688884332,0.5306084,4046.3,4046.0,2.47151678]
[1754688884510,0.4611,4046.6,4045.8,2.47266598]
[1754688884511,3.748,4046.2,4046.1,2.47151295]
[1754688884830,0.5306084,4046.6,4046.2,2.47141293]
[1754688885030,3.748,4046.5,4046.2,2.59461293]
[1754688885206,4.2223,4046.5,4046.2,2.59461293]
[1754688885400,4.2223,4046.5,4046.3,2.47136487]
[1754688885609,0.4743,4046.4,4046.3,2.47136487]
[1754688886132,0.4743,4046.4,4046.3,2.47139361]
[1754688886325,3.748,4046.5,4046.3,2.47139361]
[1754688887033,3.748,4046.4,4046.3,2.47139361]
[1754688887239,0.4743,4046.6,4046.4,2.47131506]
[1754688887433,3.748,4046.5,4046.4,2.47131506]
[1754688887637,3.748,4046.5,4046.3,2.47139361]
[1754688888534,4.2223,4046.5,4046.2,2.5946331]
[1754688889345,4.2223,4046.5,4046.3,2.47138091]
[1754688890039,4.2223,4046.5,4046.4,2.47133254]
[1754688890208,4.2223,4046.5,4046.3,2.47138376]
[1754688890556,4.2223,4046.5,4046.4,2.47133254]
[1754688890709,4.2223,4046.5,4046.3,2.47137866]
[1754688890917,4.2223,4046.5,4046.2,2.59463382]
[1754688891120,4.2223,4046.5,4046.3,2.47138744]
[1754688891952,4.2223,4046.5,4046.4,2.47133254]
[1754688892321,4.2223,4046.5,4046.3,2.47137405]
[1754688893022,0.4743,4046.5,4046.3,2.47138771]
[1754688893239,3.748,4046.4,4046.3,2.47138771]
[1754688894231,3.748,4046.4,4046.2,2.59463845]
[1754688894433,0.4746,4046.3,4046.2,2.59463845]
[1754688895142,3.748,4046.3,4046.2,6.10128176]
[1754688896268,4.2226,4046.3,4046.2,5.59465469]
[1754688896670,3.748,4046.3,4046.2,5.59465469]
[1754688901504,0.4746,4046.5,4046.4,2.47133254]
[1754688901803,4.2226,4046.5,4046.4,2.47133254]
[1754688902199,3.748,4046.5,4046.4,2.47133254]
[1754688902615,0.1232,4046.8,4046.7,2.47114933]
[1754688902783,0.0367,4046.9,4046.8,2.47108826]
[1754688902987,0.0367,4046.9,4046.8,3.26531812]
[1754688903191,0.0367,4046.9,4046.8,6.26531812]
[1754688903611,3.7847,4046.9,4046.8,6.26531812]
[1754688903815,3.7847,4046.9,4046.8,5.47108826]
[1754688904192,3.7847,4046.9,4046.8,3.0]
[1754688904499,3.7847,4046.9,4046.8,5.47108826]
[1754688906101,0.0367,4046.9,4046.8,5.47108826]
[1754688906302,0.0367,4046.9,4046.8,6.31138826]
[1754688906511,0.0367,4046.9,4046.8,7.56434704]
[1754688910988,0.0367,4046.9,4046.8,7.34574704]
[1754688911188,0.0367,4046.9,4046.8,7.56434704]
[1754688911814,0.0367,4046.9,4046.8,7.34574704]
[1754688912515,0.0367,4046.9,4046.8,7.56434704]
[1754688913218,0.0367,4046.9,4046.8,7.34574704]
[1754688914010,0.0367,4046.9,4046.8,6.84724704]
[1754688914518,1e-08,4046.9,4046.8,18.73785976]
[1754688914816,1e-08,4047.0,4046.9,6.9560272]
[1754688915021,1e-08,4047.0,4046.9,18.6146056]
[1754688915333,1e-08,4047.0,4046.9,14.2868916]
[1754688915538,1e-08,4047.0,4046.9,14.6044046]
[1754688915829,1e-08,4047.0,4046.9,15.6975576]
[1754688916726,1e-08,4047.0,4046.9,19.1404136]
[1754688917302,1e-08,4047.0,4046.9,19.6904136]
[1754688917504,1e-08,4047.4,4047.3,7.50578299]
[1754688917707,1e-08,4047.4,4047.3,32.44989401]
[1754688917908,1e-08,4047.4,4047.3,32.72686501]
[1754688918104,1e-08,4047.4,4047.3,32.82576301]
[1754688922026,1e-08,4047.4,4047.3,32.10866301]
[1754688922209,1e-08,4047.4,4047.3,32.82576301]
[1754688924395,0.04,4047.9,4047.8,2.47047779]
[1754688924600,0.002,4048.3,4047.8,2.47047779]
[1754688924601,0.002,4048.3,4047.9,0.55]
[1754688924815,0.002,4048.3,4048.2,6.02023368]
[1754688925011,0.002,4048.3,4048.2,9.88843368]
[1754688926139,0.002,4048.3,4048.2,10.31823368]
[1754688926908,0.002,4048.3,4048.2,11.01303368]
[1754688927120,0.002,4048.3,4048.2,11.83831578]
[1754688927322,0.002,4048.7,4048.6,2.46998962]
[1754688927640,0.002,4048.7,4048.6,9.21498962]
[1754688927822,0.002,4048.7,4048.6,9.33818962]
[1754688928334,0.8909,4048.7,4048.6,9.33818962]
[1754688928506,0.8909,4048.7,4048.6,10.08876792]
[1754688930953,0.002,4048.7,4048.6,10.08876792]
[1754688931314,0.002,4048.7,4048.6,10.51856792]
[1754688931518,0.002,4048.7,4048.6,10.08876792]
[1754688931954,0.002,4048.7,4048.6,10.46146792]
[1754688934022,0.002,4048.7,4048.6,11.94646792]
[1754688934228,0.002,4048.7,4048.6,10.46146792]
[1754688935337,0.8909,4048.7,4048.6,2.59318962]
[1754688935534,0.8909,4048.7,4048.6,0.1232]
[1754688937549,0.8909,4048.7,4048.6,3.1232]
[1754688937949,0.8909,4048.7,4048.6,0.1232]
[1754688945943,0.8909,4048.7,4048.2,5.47018267]
[1754688946137,0.002,4048.7,4048.4,0.1232]
[1754688946374,0.8889,4048.6,4048.4,0.1232]
[1754688946539,0.4591,4048.5,4048.4,0.1232]
[1754688946739,0.8889,4048.5,4048.4,0.1232]
[1754688947175,0.002,4048.7,4048.4,0.1232]
[1754688947344,0.8889,4048.5,4048.4,0.1232]